fUST/lending_fUST_20250417
["ID","MTS","AMOUNT","RATE_DAILY","PERIOD"]
[358264274,1744879844116,-626.41,0.00021917,2]
[358264276,1744879844126,-14600.46,0.00021917,2]
[358264278,1744879844135,-500.0,0.00021917,2]
[358264280,1744879844145,-500.0,0.00021917,2]
[358264282,1744879844154,-800.43,0.00021917,2]
[358264284,1744879844164,-514.62,0.00021917,2]
[358264286,1744879844173,-500.0,0.00021917,2]
[358264288,1744879844182,-500.0,0.00021917,2]
[358264290,1744879844192,-500.0,0.00021917,2]
[358264292,1744879844202,-438.73471292,0.00021917,2]
[358264294,1744879844211,-1106.32,0.00021917,2]
[358264296,1744879844220,-500.0,0.00021917,2]
[358264298,1744879844230,-956.79,0.00021917,2]
[358264300,1744879844240,-500.0,0.00021917,2]
[358264302,1744879844249,-500.0,0.00021917,2]
[358264304,1744879844258,-2038.79,0.00021917,2]
[358264306,1744879844268,-500.0,0.00021917,2]
[358264308,1744879844277,-712.19,0.00021917,2]
[358264310,1744879844288,-500.0,0.00021917,2]
[358264312,1744879844298,-500.0,0.00021917,2]
[358264313,1744879844308,-500.0,0.00021917,2]
[358264315,1744879844318,-500.0,0.00021917,2]
[358264317,1744879844327,-560.91,0.00021917,2]
[358264319,1744879844338,-1785.72,0.00021917,2]
[358264321,1744879844348,-500.0,0.00021917,2]
[358264323,1744879844357,-500.0,0.00021917,2]
[358264325,1744879844370,-500.0,0.00021917,2]
[358264327,1744879844379,-500.0,0.00021917,2]
[358264329,1744879844389,-660.07,0.00021917,2]
[358264331,1744879844398,-500.0,0.00021917,2]
[358264333,1744879844408,-715.75,0.00021917,2]
[358264336,1744879844418,-500.0,0.00021917,2]
[358264338,1744879844427,-500.0,0.00021917,2]
[358264339,1744879844436,-212.74663986,0.00021917,2]
[358264341,1744879844446,-544.15,0.00021917,2]
[358264344,1744879844455,-500.0,0.00021917,2]
[358264345,1744879844464,-500.0,0.00021917,2]
[358264347,1744879844474,-500.0,0.00021917,2]
[358264349,1744879844483,-9121.29,0.00021917,2]
[358264352,1744879844495,-500.0,0.00021917,2]
[358264354,1744879844504,-506.76,0.00021917,2]
[358264356,1744879844513,-500.0,0.00021917,2]
[358264358,1744879844522,-547.47733474,0.00021917,2]
[358264360,1744879844531,-570.24,0.00021917,2]
[358264362,1744879844540,-638.89,0.00021917,2]
[358264364,1744879844549,-530.18752571,0.00021917,2]
[358264366,1744879844566,-583.22,0.00021917,2]
[358264368,1744879844575,-500.0,0.00021917,2]
[358264370,1744879844585,-500.0,0.00021917,2]
[358264371,1744879844595,-500.0,0.00021917,2]
[358264374,1744879844605,-1427.94,0.00021917,2]
[358264376,1744879844614,-533.03387196,0.00021917,2]
[358264378,1744879844624,-792.14,0.00021917,2]
[358264380,1744879844633,-641.49807257,0.00021917,2]
[358264382,1744879844642,-568.86,0.00021917,2]
[358264384,1744879844651,-1377.72,0.00021917,2]
[358264386,1744879844660,-500.0,0.00021917,2]
[358264387,1744879844669,-558.14,0.00021917,2]
[358264389,1744879844678,-500.0,0.00021917,2]
[358264391,1744879844687,-151.0,0.00021917,2]
[358264393,1744879844696,-528.7,0.00021917,2]
[358264395,1744879844705,-28883.62,0.00021917,2]
[358264398,1744879844717,-500.0,0.00021917,2]
[358264400,1744879844728,-500.0,0.00021917,2]
[358264402,1744879844737,-502.22799811,0.00021917,2]
[358264404,1744879844746,-585.52,0.00021917,2]
[358264406,1744879844755,-643.02,0.00021917,2]
[358264408,1744879844764,-500.0,0.00021917,2]
[358264410,1744879844773,-500.0,0.00021917,2]
[358264412,1744879844782,-500.0,0.00021917,2]
[358264414,1744879844791,-513.47,0.00021917,2]
[358264416,1744879844800,-794.62,0.00021917,2]
[358264418,1744879844809,-500.0,0.00021917,2]
[358264420,1744879844818,-500.0,0.00021917,2]
[358264422,1744879844827,-524.77,0.00021917,2]
[358264424,1744879844837,-500.0,0.00021917,2]
[358264426,1744879844846,-1263.68,0.00021917,2]
[358264428,1744879844855,-500.0,0.00021917,2]
[358264430,1744879844864,-500.0,0.00021917,2]
[358264432,1744879844874,-500.0,0.00021917,2]
[358264434,1744879844884,-500.0,0.00021917,2]
[358264436,1744879844893,-500.0,0.00021917,2]
[358264438,1744879844902,-1293.11,0.00021917,2]
[358264440,1744879844911,-500.0,0.00021917,2]
[358264442,1744879844920,-500.0,0.00021917,2]
[358264444,1744879844929,-524.36,0.00021917,2]
[358264446,1744879844938,-357.04177796,0.00021917,2]
[358264447,1744879844948,-2267.17,0.00021917,2]
[358264448,1744879844957,-1855.71,0.00021917,2]
[358264449,1744879844966,-500.0,0.00021917,2]
[358264450,1744879844975,-500.0,0.00021917,2]
[358264451,1744879844984,-500.0,0.00021917,2]
[358264452,1744879844993,-500.0,0.00021917,2]
[358264453,1744879845003,-778.34,0.00021917,2]
[358264454,1744879845012,-756.3,0.00021917,2]
[358264455,1744879845021,-500.0,0.00021917,2]
[358264456,1744879845030,-500.0,0.00021917,2]
[358264457,1744879845039,-500.0,0.00021917,2]
[358264458,1744879845049,-500.0,0.00021917,2]
[358264459,1744879845058,-506.31,0.00021917,2]
[358264460,1744879845068,-500.0,0.00021917,2]
[358264461,1744879845077,-1105.88,0.00021917,2]
[358264462,1744879845088,-541.28,0.00021917,2]
[358264463,1744879845097,-500.0,0.00021917,2]
[358264464,1744879845106,-500.0,0.00021917,2]
[358264465,1744879845115,-1704.03,0.00021917,2]
[358264466,1744879845125,-1886.16442747,0.00021934,2]
[358264467,1744879845134,-45115.3987709,0.00021969,2]
[358264469,1744879845143,-500.0,0.00021973,2]
[358264471,1744879845152,-500.0,0.00021973,2]
[358264472,1744879845162,-500.0,0.00021973,2]
[358264473,1744879845171,-500.0,0.00021973,2]
[358264474,1744879845180,-500.0,0.00021973,2]
[358264475,1744879845189,-500.0,0.00021973,2]
[358264476,1744879845198,-500.0,0.00021973,2]
[358264477,1744879845208,-252.33419759,0.00021973,2]
[358264478,1744879845217,-500.0,0.00021973,2]
[358264479,1744879845226,-500.0,0.00021973,2]
[358264480,1744879845235,-446.93995488,0.00021973,2]
[358264483,1744879845269,-53.06004512,0.00021973,2]
[358264484,1744879845278,-506.21326619,0.00021973,2]
[358264485,1744879845289,-500.0,0.00021973,2]
[358264486,1744879845298,-509.77259152,0.00021973,2]
[358264487,1744879845307,-500.0,0.00021973,2]
[358264488,1744879845317,-152.0,0.00022,10]
[358264489,1744879845327,-164.12877909,0.00022,10]
[358264490,1744879845337,-151.0,0.00022054,2]
[358264491,1744879845346,-179.05442017,0.00022054,2]
[358264492,1744879845354,-420.0,0.0002215,2]
[358264493,1744879845363,-500.0,0.00022173,2]
[358264494,1744879845373,-501.66007053,0.00022173,2]
[358264495,1744879845382,-25.40969641,0.00022173,2]
[358264496,1744879845403,-479.41979952,0.00022173,2]
[358264497,1744879845412,-500.0,0.00022173,2]
[358264498,1744879845421,-262.70648898,0.00022173,2]
[358264499,1744879845431,-500.0,0.00022173,2]
[358264500,1744879845441,-500.0,0.00022173,2]
[358264501,1744879845450,-501.71565069,0.00022173,2]
[358264502,1744879845460,-511.14366981,0.00022173,2]
[358264503,1744879845469,-500.0,0.00022173,2]
[358264504,1744879845479,-500.0,0.00022173,2]
[358264505,1744879845488,-500.0,0.00022173,2]
[358264506,1744879845497,-269.51045882,0.00022173,2]
[358264507,1744879845508,-500.0,0.00022173,2]
[358264508,1744879845517,-519.09459566,0.00022173,2]
[358264509,1744879845526,-500.0,0.00022173,2]
[358264511,1744879845535,-500.0,0.00022173,2]
[358264513,1744879845545,-500.0,0.00022173,2]
[358264515,1744879845553,-500.0,0.00022173,2]
[358264517,1744879845562,-502.20204737,0.00022173,2]
[358264519,1744879845571,-151.0,0.00022191,2]
[358264520,1744879845581,-2230.74,0.00022191,2]
[358264521,1744879845591,-4477.63,0.00022191,2]
[358264522,1744879845601,-500.0,0.00022191,2]
[358264523,1744879845610,-500.0,0.00022191,2]
[358264524,1744879845620,-500.0,0.00022191,2]
[358264525,1744879845629,-537.63,0.00022191,2]
[358264526,1744879845638,-898.15,0.00022191,2]
[358264528,1744879845647,-561.34,0.00022191,2]
[358264530,1744879845656,-216.62398249,0.00022191,2]
[358264532,1744879845666,-504.26,0.00022191,2]
[358264534,1744879845675,-263.76426672,0.00022191,2]
[358264537,1744879845686,-1137.59,0.00022191,2]
[358264538,1744879845695,-500.0,0.00022191,2]
[358264539,1744879845704,-1287.11,0.00022191,2]
[358264540,1744879845713,-500.0,0.00022191,2]
[358264541,1744879845722,-500.0,0.00022191,2]
[358264542,1744879845731,-1548.35,0.00022191,2]
[358264543,1744879845740,-547.97435345,0.00022191,2]
[358264544,1744879845749,-329.01890702,0.00022191,2]
[358264545,1744879845758,-500.0,0.00022191,2]
[358264546,1744879845767,-942.02,0.00022191,2]
[358264547,1744879845775,-500.0,0.00022191,2]
[358264548,1744879845784,-496.1416958,0.00022191,2]
[358264549,1744879845793,-500.0,0.00022191,2]
[358264550,1744879845801,-500.0,0.00022191,2]
[358264551,1744879845810,-500.0,0.00022191,2]
[358264552,1744879845820,-159.54629284,0.00022191,2]
[358264553,1744879845829,-500.0,0.00022191,2]
[358264554,1744879845839,-500.0,0.00022191,2]
[358264556,1744879845849,-500.0,0.00022191,2]
[358264558,1744879845859,-500.0,0.00022191,2]
[358264560,1744879845869,-1133.77,0.00022191,2]
[358264562,1744879845879,-500.0,0.00022191,2]
[358264564,1744879845888,-2394.94,0.00022191,2]
[358264566,1744879845897,-500.0,0.00022191,2]
[358264568,1744879845907,-500.0,0.00022191,2]
[358264570,1744879845916,-500.0,0.00022191,2]
[358264572,1744879845926,-500.0,0.00022191,2]
[358264574,1744879845936,-500.0,0.00022191,2]
[358264576,1744879845945,-977.42,0.00022191,2]
[358264578,1744879845954,-1667.78,0.00022191,2]
[358264580,1744879845963,-757.9,0.00022191,2]
[358264582,1744879845973,-500.0,0.00022191,2]
[358264584,1744879845982,-877.17,0.00022191,2]
[358264586,1744879845991,-1388.04,0.00022191,2]
[358264588,1744879846001,-500.0,0.00022191,2]
[358264590,1744879846010,-555.33,0.00022191,2]
[358264592,1744879846019,-842.5,0.00022191,2]
[358264594,1744879846028,-500.0,0.00022191,2]
[358264596,1744879846037,-1573.76,0.00022191,2]
[358264598,1744879846047,-500.0,0.00022191,2]
[358264600,1744879846056,-500.0,0.00022191,2]
[358264601,1744879846065,-622.12,0.00022191,2]
[358264603,1744879846076,-287.8637148,0.00022191,2]
[358264605,1744879846087,-2881.83,0.00022191,2]
[358264607,1744879846097,-2737.74,0.00022191,2]
[358264609,1744879846107,-500.0,0.00022191,2]
[358264611,1744879846116,-500.0,0.00022191,2]
[358264613,1744879846125,-500.0,0.00022191,2]
[358264615,1744879846135,-500.0,0.00022191,2]
[358264617,1744879846145,-303.78478605,0.00022191,2]
[358264619,1744879846155,-385.61060767,0.00022191,2]
[358264621,1744879846165,-500.0,0.00022191,2]
[358264623,1744879846174,-500.0,0.00022191,2]
[358264625,1744879846184,-500.0,0.00022191,2]
[358264627,1744879846194,-500.0,0.00022191,2]
[358264629,1744879846204,-500.0,0.00022191,2]
[358264631,1744879846214,-500.0,0.00022191,2]
[358264633,1744879846223,-500.0,0.00022191,2]
[358264635,1744879846231,-503.29,0.00022191,2]
[358264637,1744879846241,-500.0,0.00022191,2]
[358264638,1744879846250,-500.0,0.00022191,2]
[358264640,1744879846259,-500.0,0.00022191,2]
[358264642,1744879846268,-552.36,0.00022191,2]
[358264643,1744879846279,-500.0,0.00022191,2]
[358264644,1744879846291,-3110.22,0.00022191,2]
[358264645,1744879846301,-500.0,0.00022191,2]
[358264646,1744879846310,-500.0,0.00022191,2]
[358264647,1744879846320,-500.0,0.00022191,2]
[358264648,1744879846330,-500.0,0.00022191,2]
[358264649,1744879846343,-1814.04,0.00022191,2]
[358264650,1744879846353,-500.0,0.00022191,2]
[358264651,1744879846365,-500.0,0.00022191,2]
[358264652,1744879846375,-590.95,0.00022191,2]
[358264653,1744879846385,-500.0,0.00022191,2]
[358264654,1744879846394,-541.59,0.00022191,2]
[358264655,1744879846403,-500.0,0.00022191,2]
[358264656,1744879846411,-500.0,0.00022191,2]
[358264657,1744879846420,-500.79321883,0.00022191,2]
[358264658,1744879846429,-500.0,0.00022191,2]
[358264659,1744879846437,-500.0,0.00022191,2]
[358264660,1744879846446,-839.78,0.00022191,2]
[358264661,1744879846455,-500.0,0.00022191,2]
[358264662,1744879846464,-500.0,0.00022191,2]
[358264663,1744879846473,-755.81,0.00022191,2]
[358264664,1744879846482,-725.63,0.00022191,2]
[358264665,1744879846491,-500.0,0.00022191,2]
[358264666,1744879846501,-500.0,0.00022191,2]
[358264667,1744879846510,-500.0,0.00022191,2]
[358264668,1744879846519,-500.0,0.00022191,2]
[358264669,1744879846529,-500.0,0.00022191,2]
[358264670,1744879846538,-500.0,0.00022191,2]
[358264671,1744879846547,-500.0,0.00022191,2]
[358264672,1744879846556,-571.07,0.00022191,2]
[358264673,1744879846565,-122.98083537,0.00022191,2]
[358264674,1744879846844,-485.69916463,0.00022191,2]
[358264675,1744879846855,-374.38626555,0.00022191,2]
[358264676,1744879847653,-150.51622627,0.00021056,2]
[358264677,1744879847663,-500.0,0.00021917,2]
[358264678,1744879847673,-500.0,0.00021917,2]
[358264679,1744879847683,-286.52373445,0.00022191,2]
[358264680,1744879847693,-702.31,0.00022191,2]
[358264681,1744879847704,-500.0,0.00022191,2]
[358264682,1744879847714,-500.0,0.00022191,2]
[358264683,1744879847724,-500.0,0.00022191,2]
[358264684,1744879847734,-500.0,0.00022191,2]
[358264685,1744879847744,-500.0,0.00022191,2]
[358264686,1744879847754,-500.0,0.00022191,2]
[358264687,1744879847764,-589.36,0.00022191,2]
[358264688,1744879847774,-500.0,0.00022191,2]
[358264689,1744879847784,-528.95,0.00022191,2]
[358264690,1744879847794,-500.0,0.00022191,2]
[358264691,1744879847803,-500.0,0.00022191,2]
[358264692,1744879847813,-500.0,0.00022191,2]
[358264693,1744879847823,-500.0,0.00022191,2]
[358264694,1744879847833,-500.0,0.00022191,2]
[358264695,1744879847843,-500.0,0.00022191,2]
[358264696,1744879847853,-500.0,0.00022191,2]
[358264697,1744879847863,-309.71219218,0.00022191,2]
[358264698,1744879847876,-190.28780782,0.00022191,2]
[358264699,1744879847886,-706.94,0.00022191,2]
[358264700,1744879847896,-500.0,0.00022191,2]
[358264701,1744879847906,-500.0,0.00022191,2]
[358264702,1744879847916,-511.96,0.00022191,2]
[358264703,1744879847926,-750.22,0.00022191,2]
[358264704,1744879847936,-500.0,0.00022191,2]
[358264705,1744879847946,-500.0,0.00022191,2]
[358264706,1744879847956,-500.0,0.00022191,2]
[358264707,1744879847965,-1014.81,0.00022191,2]
[358264708,1744879847975,-415.5425486,0.00022191,2]
[358264752,1744881032244,-159.3415922,0.00019612,2]
[358264754,1744881032255,-236.3900697,0.00019884,2]
[358264777,1744881032435,-167.75509615,0.000199,2]
[358264781,1744881032505,-376.03324195,0.00019944,2]
[358264783,1744881032517,-303.20362435,0.00019944,2]
[358264785,1744881032526,-160.0,0.0002,3]
[358264787,1744881032536,-271.136535,0.0002039,2]
[358264789,1744881032546,-165.4889066,0.000208,2]
[358264792,1744881032557,-959.97178429,0.00020879,2]
[358264793,1744881032566,-300.0,0.00020895,2]
[358264795,1744881032576,-300.0,0.00020895,2]
[358264797,1744881032586,-50000.0,0.00020896,2]
[358264799,1744881032595,-3124.83901892,0.00020897,2]
[358264801,1744881032605,-679.27653688,0.00020897,2]
[358264803,1744881032614,-6000.0,0.000209,2]
[358264805,1744881032624,-1720.10066111,0.000209,2]
[358264807,1744881032633,-151.0,0.00020985,2]
[358264809,1744881032646,-195.98,0.00020987,2]
[358264811,1744881032655,-500.0,0.00020997,2]
[358264813,1744881032666,-219.5238754,0.00020997,2]
[358264815,1744881032676,-31448.07795567,0.00020998,2]
[358264818,1744881032692,-133515.31396106,0.00020998,2]
[358264820,1744881032703,-1084.74651482,0.00020998,2]
[358264822,1744881032714,-25508.24708626,0.00020998,2]
[358265193,1744881038499,-500.0,0.00020895,2]
[358265194,1744881038508,-14433.87757925,0.00020998,2]
[358265312,1744881043292,-452.54177725,0.00020998,2]
[358265327,1744881046391,-6291.32176184,0.00020998,2]
[358265328,1744881046498,-753.5,0.00020998,2]
[358265330,1744881486183,1275.0,0.0001801,2]
[358265374,1744882072443,342.96331774,0.00018,2]
[358265377,1744882076351,1216.96793457,0.00016,2]
[358265430,1744882192749,792.20927826,0.00023,30]
[358265446,1744882232425,-271.136536,0.00020017,2]
[358265447,1744882232435,-1552.76257174,0.00020796,2]
[358265448,1744882232444,-165.4889066,0.00020797,2]
[358265449,1744882232454,-6000.0,0.000208,2]
[358265450,1744882232464,-300.0,0.00020894,2]
[358265451,1744882232473,-300.0,0.00020894,2]
[358265452,1744882232483,-500.0,0.00020895,2]
[358265453,1744882232494,-495.38806346,0.00020895,2]
[358265454,1744882232504,-500.0,0.00020895,2]
[358265455,1744882232514,-500.0,0.00020895,2]
[358265456,1744882232524,-500.0,0.00020895,2]
[358265457,1744882232533,-98.00112319,0.00020895,2]
[358265469,1744882238460,-401.99887681,0.00020895,2]
[358265470,1744882238470,-500.0,0.00020895,2]
[358265471,1744882238481,-493.87505125,0.00020895,2]
[358265472,1744882238707,-259.81883175,0.00020896,2]
[358265473,1744882238729,-34486.14323188,0.00020896,2]
[358265566,1744882246644,-500.0,0.00020897,2]
[358265567,1744882246654,-318.04396795,0.00020897,2]
[358265568,1744882246664,-1000.0,0.00020898,2]
[358265569,1744882246674,-131205.08373371,0.00020898,2]
[358265570,1744882246684,-156.89,0.00021,2]
[358265572,1744882246694,-279.89391312,0.00021166,2]
[358265574,1744882246705,-402.0,0.0002137,2]
[358265576,1744882246715,-150.081,0.00021389,2]
[358265578,1744882246725,-503.53274774,0.00021449,2]
[358265580,1744882246735,-1552.76257173,0.00021811,2]
[358265581,1744882246745,-633.0,0.000219,2]
[358265582,1744882246754,-151.0,0.00021904,2]
[358265583,1744882246764,-151.0,0.00021904,2]
[358265584,1744882246773,-207.4,0.00021904,2]
[358265585,1744882246783,-17637.51710878,0.00021917,2]
[358265586,1744882246792,-762.00344901,0.00021917,3]
[358265587,1744882246802,-342.22,0.00021917,2]
[358265588,1744882246811,-4598.22,0.00021917,2]
[358265589,1744882246821,-500.0,0.00021917,2]
[358265590,1744882246831,-500.58273547,0.00021917,2]
[358265591,1744882246840,-513.66,0.00021917,2]
[358265592,1744882246850,-500.0,0.00021917,2]
[358265593,1744882246860,-797.36,0.00021917,2]
[358265594,1744882246869,-500.0,0.00021917,2]
[358265595,1744882246878,-500.0,0.00021917,2]
[358265596,1744882246888,-500.0,0.00021917,2]
[358265597,1744882246897,-507.5,0.00021917,2]
[358265598,1744882246908,-502.03335535,0.00021917,2]
[358265599,1744882246920,-500.30787131,0.00021917,2]
[358265600,1744882246930,-500.0,0.00021917,2]
[358265601,1744882246940,-1063.62,0.00021917,2]
[358265602,1744882246950,-535.71539511,0.00021917,2]
[358265603,1744882246959,-500.0,0.00021917,2]
[358265604,1744882246968,-211.75958744,0.00021917,2]
[358265605,1744882246978,-1235.81,0.00021917,2]
[358265606,1744882246987,-500.0,0.00021917,2]
[358265607,1744882246999,-1494.02,0.00021917,2]
[358265608,1744882247013,-500.0,0.00021917,2]
[358265609,1744882247023,-500.0,0.00021917,2]
[358265610,1744882247033,-500.0,0.00021917,2]
[358265611,1744882247043,-1060.12,0.00021917,2]
[358265612,1744882247055,-2195.37,0.00021917,2]
[358265613,1744882247065,-500.0,0.00021917,2]
[358265614,1744882247077,-500.0,0.00021917,2]
[358265615,1744882247088,-664.56,0.00021917,2]
[358265616,1744882247098,-500.0,0.00021917,2]
[358265617,1744882247107,-500.0,0.00021917,2]
[358265618,1744882247117,-500.0,0.00021917,2]
[358265619,1744882247126,-500.0,0.00021917,2]
[358265620,1744882247136,-500.0,0.00021917,2]
[358265621,1744882247147,-1324.5,0.00021917,2]
[358265622,1744882247156,-500.0,0.00021917,2]
[358265623,1744882247166,-922.13,0.00021917,2]
[358265624,1744882247176,-500.0,0.00021917,2]
[358265625,1744882247186,-500.0,0.00021917,2]
[358265626,1744882247196,-1528.8,0.00021917,2]
[358265627,1744882247206,-553.83,0.00021917,2]
[358265628,1744882247215,-694.74,0.00021917,2]
[358265629,1744882247225,-542.27,0.00021917,2]
[358265630,1744882247235,-500.0,0.00021917,2]
[358265631,1744882247245,-500.0,0.00021917,2]
[358265632,1744882247255,-500.0,0.00021917,2]
[358265633,1744882247264,-500.0,0.00021917,2]
[358265634,1744882247274,-500.0,0.00021917,2]
[358265635,1744882247283,-500.0,0.00021917,2]
[358265636,1744882247293,-501.31037973,0.00021917,2]
[358265637,1744882247303,-500.0,0.00021917,2]
[358265638,1744882247313,-500.97554538,0.00021917,2]
[358265639,1744882247323,-500.0,0.00021917,2]
[358265640,1744882247333,-500.0,0.00021917,2]
[358265641,1744882247343,-1219.35,0.00021917,2]
[358265642,1744882247354,-504.68518985,0.00021917,2]
[358265643,1744882247363,-1818.08,0.00021917,2]
[358265644,1744882247373,-500.0,0.00021917,2]
[358265645,1744882247383,-500.0,0.00021917,2]
[358265646,1744882247392,-500.0,0.00021917,2]
[358265647,1744882247402,-1325.99,0.00021917,2]
[358265648,1744882247412,-500.0,0.00021917,2]
[358265649,1744882247422,-690.46,0.00021917,2]
[358265650,1744882247431,-500.0,0.00021917,2]
[358265651,1744882247441,-505.14580465,0.00021917,2]
[358265652,1744882247451,-501.24093945,0.00021917,2]
[358265653,1744882247460,-500.0,0.00021917,2]
[358265654,1744882247469,-500.0,0.00021917,2]
[358265655,1744882247479,-1028.29,0.00021917,2]
[358265656,1744882247489,-547.9,0.00021917,2]
[358265657,1744882247498,-500.0,0.00021917,2]
[358265658,1744882247512,-782.87,0.00021917,2]
[358265659,1744882247522,-500.0,0.00021917,2]
[358265660,1744882247531,-806.35,0.00021917,2]
[358265661,1744882247541,-500.0,0.00021917,2]
[358265662,1744882247551,-500.0,0.00021917,2]
[358265663,1744882247561,-500.0,0.00021917,2]
[358265664,1744882247571,-500.0,0.00021917,2]
[358265665,1744882247580,-500.0,0.00021917,2]
[358265666,1744882247590,-500.0,0.00021917,2]
[358265667,1744882247600,-500.0,0.00021917,2]
[358265668,1744882247610,-500.0,0.00021917,2]
[358265669,1744882247620,-500.0,0.00021917,2]
[358265670,1744882247629,-500.0,0.00021917,2]
[358265671,1744882247639,-554.72,0.00021917,2]
[358265672,1744882247649,-500.0,0.00021917,2]
[358265673,1744882247659,-500.0,0.00021917,2]
[358265674,1744882247668,-500.0,0.00021917,2]
[358265675,1744882247678,-500.0,0.00021917,2]
[358265676,1744882247688,-2865.32,0.00021917,2]
[358265677,1744882247698,-525.14288422,0.00021917,2]
[358265678,1744882247709,-500.0,0.00021917,2]
[358265679,1744882247719,-500.0,0.00021917,2]
[358265680,1744882247728,-500.0,0.00021917,2]
[358265681,1744882247784,-662.87,0.00021917,2]
[358265682,1744882247794,-540.39,0.00021917,2]
[358265683,1744882247803,-500.0,0.00021917,2]
[358265684,1744882247813,-500.0,0.00021917,2]
[358265685,1744882247823,-803.05,0.00021917,2]
[358265686,1744882247832,-500.0,0.00021917,2]
[358265687,1744882247842,-500.0,0.00021917,2]
[358265688,1744882247851,-539.38686418,0.00021917,2]
[358265689,1744882247861,-500.0,0.00021917,2]
[358265690,1744882247870,-500.0,0.00021917,2]
[358265691,1744882247879,-500.0,0.00021917,2]
[358265692,1744882247887,-976.17,0.00021917,2]
[358265693,1744882247895,-500.0,0.00021917,2]
[358265694,1744882247904,-767.07,0.00021917,2]
[358265695,1744882247913,-500.0,0.00021917,2]
[358265696,1744882247922,-791.68,0.00021917,2]
[358265697,1744882247931,-500.0,0.00021917,2]
[358265698,1744882247941,-537.30901299,0.00021917,2]
[358265699,1744882247951,-918.18,0.00021917,2]
[358265700,1744882247960,-554.33,0.00021917,2]
[358265701,1744882247970,-500.0,0.00021917,2]
[358265702,1744882247979,-2732.24,0.00021917,2]
[358265703,1744882247988,-500.0,0.00021917,2]
[358265704,1744882247997,-682.52,0.00021917,2]
[358265705,1744882248008,-500.0,0.00021917,2]
[358265706,1744882248019,-500.0,0.00021917,2]
[358265707,1744882248028,-500.0,0.00021917,2]
[358265708,1744882248038,-500.0,0.00021917,2]
[358265709,1744882248048,-500.0,0.00021917,2]
[358265710,1744882248058,-500.0,0.00021917,2]
[358265711,1744882248068,-500.0,0.00021917,2]
[358265712,1744882248077,-500.0,0.00021917,2]
[358265713,1744882248087,-500.0,0.00021917,2]
[358265714,1744882248098,-546.48,0.00021917,2]
[358265715,1744882248108,-500.0,0.00021917,2]
[358265716,1744882248117,-1953.84,0.00021917,2]
[358265717,1744882248126,-500.0,0.00021917,2]
[358265718,1744882248136,-500.0,0.00021917,2]
[358265719,1744882248145,-500.0,0.00021917,2]
[358265720,1744882248155,-759.13,0.00021917,2]
[358265721,1744882248165,-500.0,0.00021917,2]
[358265722,1744882248175,-500.0,0.00021917,2]
[358265723,1744882248184,-500.0,0.00021917,2]
[358265724,1744882248195,-500.0,0.00021917,2]
[358265725,1744882248204,-500.0,0.00021917,2]
[358265726,1744882248214,-500.0,0.00021917,2]
[358265727,1744882248223,-534.88,0.00021917,2]
[358265728,1744882248233,-500.0,0.00021917,2]
[358265729,1744882248243,-500.0,0.00021917,2]